Portfolio,Expense Area,Cost Centre,Expense Type,Account Code,Amount,Supplier Name,SupplierId,Pay Date,Transaction No.,,VAT No.,Co. Reg. No.,VAT No.,Voucher Type,�,Trans Date
Environment and Public Realm,Street Cleansing General,STC00,Materials,303,10.52,Arco Limited,100015,14/02/2019,10267851,TC,,133804,166911546,PN,1228.46,43490
Environment and Public Realm,WSU Depot,WDP00,Materials,303,359.6,Arco Limited,100015,14/02/2019,10267851,TC,,133804,166911546,PN,1228.46,43490
Environment and Public Realm,Domestic Waste Collection/Recycling,REF00,Personal Protective Equipment,306,363.6,Arco Limited,100015,14/02/2019,10267851,TC,,133804,166911546,PN,1228.46,43490
Environment and Public Realm,Street Cleansing General,STC00,Personal Protective Equipment,306,121.2,Arco Limited,100015,14/02/2019,10267851,TC,,133804,166911546,PN,1228.46,43490
Environment and Public Realm,Garage,WVR00,Personal Protective Equipment,306,168.8,Arco Limited,100015,14/02/2019,10267851,TC,,133804,166911546,PN,1228.46,43490
Environment and Public Realm,Parks,PKS00,Training fees,11,420,The Arboricultural Association,100027,28/02/2019,10268701,TC,,,293509829,PI,504,43516
Environment and Public Realm,Regulatory Services,REG00,Conference & Seminar Fees,401,1976,Ricardo Energy T/A Aea Technology plc,100050,28/02/2019,10268837,TC,,8229264,130,PI,2371.2,43518
Housing Revenue Account,Gas Heating Systems,UMR01,R&M External Contractors,100,21.5,AWM Electrical Contractors Ltd,100051,07/02/2019,10268112,CS,,7430696,661675907,PN,660.6,43501
Housing Revenue Account,Electrical Inspections,UMR04,R&M External Contractors,100,152.88,AWM Electrical Contractors Ltd,100051,07/02/2019,10268112,CS,,7430696,661675907,PN,660.6,43501
Housing Revenue Account,Electrical maintenance,UMR10,R&M External Contractors,100,376.12,AWM Electrical Contractors Ltd,100051,07/02/2019,10268112,CS,,7430696,661675907,PN,660.6,43501
Housing Revenue Account,Repairs and Maintenance - Void works,UMR09,R&M External Contractors,100,700.31,AWM Electrical Contractors Ltd,100051,07/02/2019,10268113,CS,,7430696,661675907,PN,840.37,43501
Housing Revenue Account,Electrical maintenance,UMR10,R&M External Contractors,100,1566.04,AWM Electrical Contractors Ltd,100051,07/02/2019,10268114,CS,,7430696,661675907,PN,2232.7,43501
Housing Revenue Account,Miscellaneous Unplanned Maintenance and Repair,UMR17,R&M External Contractors,100,294.55,AWM Electrical Contractors Ltd,100051,07/02/2019,10268114,CS,,7430696,661675907,PN,2232.7,43501
Communities and Homes,CAST - Private Sector Leasing,CAS03,R&M External Contractors,100,119.44,AWM Electrical Contractors Ltd,100051,07/02/2019,10268115,CS,,7430696,661675907,PN,3096.16,43501
Housing Revenue Account,Electrical Inspections,UMR04,R&M External Contractors,100,877.93,AWM Electrical Contractors Ltd,100051,07/02/2019,10268115,CS,,7430696,661675907,PN,3096.16,43501
Housing Revenue Account,Electrical maintenance,UMR10,R&M External Contractors,100,1582.76,AWM Electrical Contractors Ltd,100051,07/02/2019,10268115,CS,,7430696,661675907,PN,3096.16,43501
Housing Revenue Account,Repairs and Maintenance - Void works,UMR09,R&M External Contractors,100,634.11,AWM Electrical Contractors Ltd,100051,14/02/2019,10268246,CS,,7430696,661675907,PN,760.93,43503
Housing Revenue Account,Electrical maintenance,UMR10,R&M External Contractors,100,1164.49,AWM Electrical Contractors Ltd,100051,14/02/2019,10268347,CS,,7430696,661675907,PN,1397.39,43507
Housing Revenue Account,Repairs and Maintenance - Void works,UMR09,R&M External Contractors,100,456.69,AWM Electrical Contractors Ltd,100051,14/02/2019,10268348,CS,,7430696,661675907,PN,548.03,43507
Housing Revenue Account,Electrical maintenance,UMR10,R&M External Contractors,100,2603.95,AWM Electrical Contractors Ltd,100051,14/02/2019,10268423,CS,,7430696,661675907,PN,3311.38,43509
Housing Revenue Account,Lift maintenance,UMR14,R&M External Contractors,100,155.53,AWM Electrical Contractors Ltd,100051,14/02/2019,10268423,CS,,7430696,661675907,PN,3311.38,43509
Housing Revenue Account,Electrical Inspections,UMR04,R&M External Contractors,100,2598.96,AWM Electrical Contractors Ltd,100051,14/02/2019,10268425,CS,,7430696,661675907,PN,3118.75,43509
Housing Revenue Account,Electrical Inspections,UMR04,R&M External Contractors,100,458.64,AWM Electrical Contractors Ltd,100051,21/02/2019,10268541,CS,,7430696,661675907,PN,808.62,43514
Housing Revenue Account,Electrical maintenance,UMR10,R&M External Contractors,100,215.21,AWM Electrical Contractors Ltd,100051,21/02/2019,10268541,CS,,7430696,661675907,PN,808.62,43514
Housing Revenue Account,Repairs and Maintenance - Void works,UMR09,R&M External Contractors,100,1439.77,AWM Electrical Contractors Ltd,100051,21/02/2019,10268543,CS,,7430696,661675907,PN,1727.72,43514
Housing Revenue Account,Electrical Inspections,UMR04,R&M External Contractors,100,515.33,AWM Electrical Contractors Ltd,100051,21/02/2019,10268584,CS,,7430696,661675907,PN,1817.7,43514
Housing Revenue Account,Electrical maintenance,UMR10,R&M External Contractors,100,999.42,AWM Electrical Contractors Ltd,100051,21/02/2019,10268584,CS,,7430696,661675907,PN,1817.7,43514
Housing Revenue Account,Electrical Inspections,UMR04,R&M External Contractors,100,764.4,AWM Electrical Contractors Ltd,100051,28/02/2019,10268814,CS,,7430696,661675907,PN,968.88,43518
Housing Revenue Account,Electrical maintenance,UMR10,R&M External Contractors,100,43,AWM Electrical Contractors Ltd,100051,28/02/2019,10268814,CS,,7430696,661675907,PN,968.88,43518
Housing Revenue Account,Electrical Inspections,UMR04,R&M External Contractors,100,535.08,AWM Electrical Contractors Ltd,100051,28/02/2019,10268815,CS,,7430696,661675907,PN,837.22,43518
Housing Revenue Account,Electrical maintenance,UMR10,R&M External Contractors,100,162.6,AWM Electrical Contractors Ltd,100051,28/02/2019,10268815,CS,,7430696,661675907,PN,837.22,43518
Housing Revenue Account,Electrical Inspections,UMR04,R&M External Contractors,100,2335.51,AWM Electrical Contractors Ltd,100051,28/02/2019,10268816,CS,,7430696,661675907,PN,3320.83,43518
Housing Revenue Account,Electrical maintenance,UMR10,R&M External Contractors,100,431.85,AWM Electrical Contractors Ltd,100051,28/02/2019,10268816,CS,,7430696,661675907,PN,3320.83,43518
Housing Revenue Account,Repairs and Maintenance - Void works,UMR09,R&M External Contractors,100,597.78,AWM Electrical Contractors Ltd,100051,28/02/2019,10268817,CS,,7430696,661675907,PN,717.34,43518
Housing Revenue Account,Repairs and Maintenance - Void works,UMR09,R&M External Contractors,100,2367.5,AWM Electrical Contractors Ltd,100051,28/02/2019,10268818,CS,,7430696,661675907,PN,2841,43518
Housing Revenue Account,Electrical maintenance,UMR10,R&M External Contractors,100,1042.25,AWM Electrical Contractors Ltd,100051,28/02/2019,10268819,CS,,7430696,661675907,PN,1250.7,43518
Housing Revenue Account,Electrical Inspections,UMR04,R&M External Contractors,100,458.64,AWM Electrical Contractors Ltd,100051,28/02/2019,10268851,CS,,7430696,661675907,PN,696.66,43521
Housing Revenue Account,Electrical maintenance,UMR10,R&M External Contractors,100,121.91,AWM Electrical Contractors Ltd,100051,28/02/2019,10268851,CS,,7430696,661675907,PN,696.66,43521
Corporate Resources,Corporate Property R&M,CPA01,R&M External Contractors,100,932.62,Adt Fire & Security plc,100070,14/02/2019,10268335,TC,,1161045,413 6330 86,PN,1119.14,43507
Corporate Resources,Corporate Property R&M,CPA01,R&M External Contractors,100,464,Adt Fire & Security plc,100070,28/02/2019,10268869,TC,,1161045,413 6330 86,PN,556.8,43521
Housing Revenue Account,Repairs and Maintenance - Void works,UMR09,R&M External Contractors,100,810.02,A C E Carpentry & Joinery Contractors Ltd,100085,14/02/2019,10268345,CS,,4120783,729422428,PN,972.02,43507
Housing Revenue Account,Unplanned Maintenance and Repair,UMR00,R&M External Contractors,100,2416.5,A C E Carpentry & Joinery Contractors Ltd,100085,14/02/2019,10268445,CS,,4120783,729422428,PN,8699.4,43509
Capital Housing Revenue Account,Kitchen Modifications,HIK10,Capital Contract Payments,5000,4833,A C E Carpentry & Joinery Contractors Ltd,100085,14/02/2019,10268445,CS,,4120783,729422428,PN,8699.4,43509
Environment and Public Realm,Garage,WVR00,Materials,303,1100,BOC Limited,100150,14/02/2019,10268130,TC,,,22655655500,PN,1320,43501
Housing Revenue Account,Sheltered Housing,AGP00,Telephone Expenses,371,3785.64,British Telecommunications Plc,100161,21/02/2019,10268529,TC,,,245719348,PN,4542.77,43511
Environment and Public Realm,Crematorium,CRM00,Telephone Expenses,371,1187.88,British Telecommunications Plc,100161,21/02/2019,10268595,TC,,,245719348,PN,1425.46,43514
Communities and Homes,Universal Credit Support,CAS04,Other Agencies,734,642.6,Benn Partnership Centre,100235,14/02/2019,10267174,TC,,,,PI,642.6,43469
Communities and Homes,Universal Credit Support,CAS04,Other Agencies,734,1927.8,Benn Partnership Centre,100235,14/02/2019,10268242,TC,,,,PI,1927.8,43502
Environment and Public Realm,Regulatory Services,REG00,Other Miscellaneous Expenses,444,2350,Heart Of England Co-operative Society Ltd,100479,07/02/2019,10268229,TC,,,328078938,PN,2350,43502
Executive Director Office,Members Expenses,MEM00,Other Miscellaneous Expenses,444,900,Personal Redacted Data,100557,21/02/2019,10268633,NT,,,,PN,900,43515
Environment and Public Realm,Domestic Waste Collection/Recycling,REF00,Vehicle Repair and Maintenance,200,474.43,Dennis Eagle Ltd,100559,14/02/2019,10267942,TC,,,272 4968 27,PN,606.73,43494
Environment and Public Realm,Domestic Waste Collection/Recycling,REF00,Materials,303,31.15,Dennis Eagle Ltd,100559,14/02/2019,10267942,TC,,,272 4968 27,PN,606.73,43494
Environment and Public Realm,Domestic Waste Collection/Recycling,REF00,Vehicle Repair and Maintenance,200,175.94,Dennis Eagle Ltd,100559,07/02/2019,10267943,TC,,,272 4968 27,PN,782.66,43494
Environment and Public Realm,Garage,WVR00,Materials,303,476.28,Dennis Eagle Ltd,100559,07/02/2019,10267943,TC,,,272 4968 27,PN,782.66,43494
Environment and Public Realm,Domestic Waste Collection/Recycling,REF00,Vehicle Repair and Maintenance,200,1278.17,Dennis Eagle Ltd,100559,14/02/2019,10267980,TC,,,272 4968 27,PN,1533.8,43495
Environment and Public Realm,Domestic Waste Collection/Recycling,REF00,Vehicle Repair and Maintenance,200,252.44,Dennis Eagle Ltd,100559,28/02/2019,10268439,TC,,,272 4968 27,PN,605.86,43509
Environment and Public Realm,Trade Waste Collection,WWC01,Vehicle Repair and Maintenance,200,252.44,Dennis Eagle Ltd,100559,28/02/2019,10268439,TC,,,272 4968 27,PN,605.86,43509
Environment and Public Realm,Domestic Waste Collection/Recycling,REF00,Vehicle Repair and Maintenance,200,644.02,Dennis Eagle Ltd,100559,28/02/2019,10268440,TC,,,272 4968 27,PN,772.82,43509
Corporate Resources,Corporate Property R&M,CPA01,R&M External Contractors,100,695.52,Dunchurch Services (Rugby) Ltd,100565,14/02/2019,10268371,CS,,2693688,623535748,PN,834.62,43507
Corporate Resources,Corporate Property Central Utilities,CPA02,Gas,131,2303.6,ESPO,100641,07/02/2019,10268144,TC,,,705180561,PN,2764.32,43501
Corporate Resources,Corporate Property Central Utilities,CPA02,Gas,131,-2303.6,ESPO,100641,28/02/2019,10268394,TC,,,705180561,PN,-2764.32,43508
Corporate Resources,Corporate Property Central Utilities,CPA02,Gas,131,1823.61,ESPO,100641,28/02/2019,10268395,TC,,,705180561,PN,2188.33,43508
Corporate Resources,Corporate Property Central Utilities,CPA02,Gas,131,538.72,ESPO,100641,28/02/2019,10268396,TC,,,705180561,PN,646.46,43508
Corporate Resources,Corporate Property Central Utilities,CPA02,Gas,131,1568.55,ESPO,100641,28/02/2019,10268483,TC,,,705180561,PN,1882.26,43511
Corporate Resources,Corporate Property Central Utilities,CPA02,Gas,131,3003.04,ESPO,100641,28/02/2019,10268484,TC,,,705180561,PN,3603.64,43511
Housing Revenue Account,Albert Square AP,AGP20,Gas,131,1505.72,ESPO,100641,28/02/2019,10268486,TC,,,705180561,PN,1806.86,43511
Housing Revenue Account,Lesley Souter House AP,AGP16,Gas,131,1089.3,ESPO,100641,28/02/2019,10268487,TC,,,705180561,PN,1307.16,43511
Housing Revenue Account,Tanser Court AP,AGP17,Gas,131,1302.21,ESPO,100641,28/02/2019,10268488,TC,,,705180561,PN,1562.65,43511
Environment and Public Realm,WSU Depot,WDP00,Gas,131,1005.5,ESPO,100641,21/02/2019,10268495,TC,,,705180561,PN,1055.78,43511
Environment and Public Realm,Crematorium,CRM00,Gas,131,2090.7,ESPO,100641,21/02/2019,10268507,TC,,,705180561,PN,2508.84,43511
Capital Housing Revenue Account,Purchase of Council Houses,PUR00,Capital Contract Payments,5000,974.08,Nationwide Windows Ltd,100808,28/02/2019,10268813,CS,,2025613,792405224,PN,1168.9,43518
Environment and Public Realm,Street Furniture,LEI22,Capital Contract Payments,5000,6000,Glasdon U K Limited,100886,21/02/2019,10268575,TC,,,155847044,PI,7200,43514
Environment and Public Realm,WSU Depot,WDP00,New Equipment,300,447.44,IE Office Equipment Ltd,101114,21/02/2019,10268667,CS,,,661544339,PI,588.05,43516
Environment and Public Realm,WSU Depot,WDP00,Stationery Supplies,350,42.6,IE Office Equipment Ltd,101114,21/02/2019,10268667,CS,,,661544339,PI,588.05,43516
Communities and Homes,Community Advice & Support Team,CAS00,Subscriptions,421,600,Institute Of Revenues Rating & Valuation,101124,14/02/2019,10268344,TC,,223447,626604544,PN,1440,43507
Corporate Resources,Council Tax and NNDR Collection,CTX01,Subscriptions,421,600,Institute Of Revenues Rating & Valuation,101124,14/02/2019,10268344,TC,,223447,626604544,PN,1440,43507
Housing Revenue Account,Unplanned Maintenance and Repair,UMR00,External Contractor & Operator,742,740.36,Clews Recycling Limited,101213,14/02/2019,10267654,TC,,,747316619,PN,888.43,43486
Housing Revenue Account,Unplanned Maintenance and Repair,UMR00,External Contractor & Operator,742,1433.95,Clews Recycling Limited,101213,14/02/2019,10268050,TC,,,747316619,PN,1720.74,43497
Housing Revenue Account,Unplanned Maintenance and Repair,UMR00,External Contractor & Operator,742,935.78,Clews Recycling Limited,101213,21/02/2019,10268399,TC,,,747316619,PN,1122.94,43508
Housing Revenue Account,Unplanned Maintenance and Repair,UMR00,External Contractor & Operator,742,530.84,Clews Recycling Limited,101213,28/02/2019,10268672,TC,,,747316619,PN,637.01,43516
Corporate Resources,Legal Services,DEM20,External Legal Costs,741,800,Fields In Trust,101376,14/02/2019,10268352,TC,,,653884694,PN,960,43507
Housing Revenue Account,Sheltered Housing,AGP00,Telephone Expenses,371,246.88,EE Ltd t/a Orange Personal Communications,101404,21/02/2019,10268477,TC,,2382161,529221751,PN,4911.11,43511
Environment and Public Realm,Crematorium,CRM00,Telephone Expenses,371,23.5,EE Ltd t/a Orange Personal Communications,101404,21/02/2019,10268477,TC,,2382161,529221751,PN,4911.11,43511
Housing Revenue Account,Supervision and Management General,MAN00,Telephone Expenses,371,154.21,EE Ltd t/a Orange Personal Communications,101404,21/02/2019,10268477,TC,,2382161,529221751,PN,4911.11,43511
Housing Revenue Account,Housing Management,MAN22,Telephone Expenses,371,11.75,EE Ltd t/a Orange Personal Communications,101404,21/02/2019,10268477,TC,,2382161,529221751,PN,4911.11,43511
Housing Revenue Account,Property Maintenance,MAN23,Telephone Expenses,371,162.25,EE Ltd t/a Orange Personal Communications,101404,21/02/2019,10268477,TC,,2382161,529221751,PN,4911.11,43511
Housing Revenue Account,Voids & Allocations Team,MAN24,Telephone Expenses,371,58,EE Ltd t/a Orange Personal Communications,101404,21/02/2019,10268477,TC,,2382161,529221751,PN,4911.11,43511
Housing Revenue Account,Multi-Storey Flats,MSF00,Telephone Expenses,371,11.75,EE Ltd t/a Orange Personal Communications,101404,21/02/2019,10268477,TC,,2382161,529221751,PN,4911.11,43511
Communities and Homes,Mobile telephones,TEL03,Telephone Expenses,371,2715.56,EE Ltd t/a Orange Personal Communications,101404,21/02/2019,10268477,TC,,2382161,529221751,PN,4911.11,43511
Housing Revenue Account,Unplanned Maintenance and Repair,UMR00,Telephone Expenses,371,696.94,EE Ltd t/a Orange Personal Communications,101404,21/02/2019,10268477,TC,,2382161,529221751,PN,4911.11,43511
Housing Revenue Account,Repairs and Maintenance - Void works,UMR09,Telephone Expenses,371,11.75,EE Ltd t/a Orange Personal Communications,101404,21/02/2019,10268477,TC,,2382161,529221751,PN,4911.11,43511
Environment and Public Realm,Parks,PKS00,Maintenance of Equipment,301,880,Post To Post Fencing,101490,28/02/2019,10268581,CS,,,7729350133,PI,1116,43514
Environment and Public Realm,Parks,PKS00,External Contractor & Operator,742,50,Post To Post Fencing,101490,28/02/2019,10268581,CS,,,7729350133,PI,1116,43514
Capital Housing Revenue Account,Bathroom Modifications,HIS01,Capital Contract Payments,5000,12231.3,Reeds Plumbing & Heating Contractors Ltd,101504,07/02/2019,10268091,CS,,4468782,418 5847 32,PN,20264.76,43497
Capital Housing Revenue Account,Purchase of Council Houses,PUR00,Capital Contract Payments,5000,4656,Reeds Plumbing & Heating Contractors Ltd,101504,07/02/2019,10268091,CS,,4468782,418 5847 32,PN,20264.76,43497
Capital Housing Revenue Account,Bathroom Modifications,HIS01,Capital Contract Payments,5000,2430,Reeds Plumbing & Heating Contractors Ltd,101504,07/02/2019,10268138,CS,,4468782,418 5847 32,PN,2976.65,43501
Capital Housing Revenue Account,Purchase of Council Houses,PUR00,Capital Contract Payments,5000,50.54,Reeds Plumbing & Heating Contractors Ltd,101504,07/02/2019,10268138,CS,,4468782,418 5847 32,PN,2976.65,43501
Capital Housing Revenue Account,Disabled Adaptations,HCR01,Capital Contract Payments,5000,2060,Reeds Plumbing & Heating Contractors Ltd,101504,21/02/2019,10268471,CS,,4468782,418 5847 32,PN,20085.07,43510
Capital Housing Revenue Account,Bathroom Modifications,HIS01,Capital Contract Payments,5000,14677.56,Reeds Plumbing & Heating Contractors Ltd,101504,21/02/2019,10268471,CS,,4468782,418 5847 32,PN,20085.07,43510
Housing Revenue Account,Repairs and Maintenance - Void works,UMR09,R&M External Contractors,100,2446.26,Reeds Plumbing & Heating Contractors Ltd,101504,21/02/2019,10268590,CS,,4468782,418 5847 32,PN,14677.56,43514
Capital Housing Revenue Account,Bathroom Modifications,HIS01,Capital Contract Payments,5000,9785.04,Reeds Plumbing & Heating Contractors Ltd,101504,21/02/2019,10268590,CS,,4468782,418 5847 32,PN,14677.56,43514
Growth and Investment,Art Gallery and Museum,AGM00,Postage & Distribution,370,2.38,Royal Mail,101554,07/02/2019,10268058,TC,,,,PN,1851.2,43497
Growth and Investment,Building Control Services,BCS00,Postage & Distribution,370,2.34,Royal Mail,101554,07/02/2019,10268058,TC,,,,PN,1851.2,43497
Communities and Homes,Community Advice & Support Team,CAS00,Postage & Distribution,370,150.02,Royal Mail,101554,07/02/2019,10268058,TC,,,,PN,1851.2,43497
Communities and Homes,Central Business Support Services,CSS15,Postage & Distribution,370,369.34,Royal Mail,101554,07/02/2019,10268058,TC,,,,PN,1851.2,43497
Corporate Resources,Council Tax and NNDR Collection,CTX01,Postage & Distribution,370,440.17,Royal Mail,101554,07/02/2019,10268058,TC,,,,PN,1851.2,43497
Executive Director Office,Electoral Registration,ERG00,Postage & Distribution,370,384.8,Royal Mail,101554,07/02/2019,10268058,TC,,,,PN,1851.2,43497
Housing Revenue Account,Supervision and Management General,MAN00,Postage & Distribution,370,82.77,Royal Mail,101554,07/02/2019,10268058,TC,,,,PN,1851.2,43497
Growth and Investment,Planning General/Income,PLN00,Postage & Distribution,370,109.22,Royal Mail,101554,07/02/2019,10268058,TC,,,,PN,1851.2,43497
Environment and Public Realm,Domestic Waste Collection/Recycling,REF00,Postage & Distribution,370,1.06,Royal Mail,101554,07/02/2019,10268058,TC,,,,PN,1851.2,43497
Housing Revenue Account,Unplanned Maintenance and Repair,UMR00,Postage & Distribution,370,1.32,Royal Mail,101554,07/02/2019,10268058,TC,,,,PN,1851.2,43497
Growth and Investment,Art Gallery and Museum,AGM00,Postage & Distribution,370,1.47,Royal Mail,101554,21/02/2019,10268284,TC,,,,PN,1326.1,43504
Growth and Investment,Building Control Services,BCS00,Postage & Distribution,370,1.81,Royal Mail,101554,21/02/2019,10268284,TC,,,,PN,1326.1,43504
Communities and Homes,Community Advice & Support Team,CAS00,Postage & Distribution,370,122.18,Royal Mail,101554,21/02/2019,10268284,TC,,,,PN,1326.1,43504
Communities and Homes,Central Business Support Services,CSS15,Postage & Distribution,370,203.61,Royal Mail,101554,21/02/2019,10268284,TC,,,,PN,1326.1,43504
Corporate Resources,Council Tax and NNDR Collection,CTX01,Postage & Distribution,370,313.4,Royal Mail,101554,21/02/2019,10268284,TC,,,,PN,1326.1,43504
Executive Director Office,Electoral Registration,ERG00,Postage & Distribution,370,19.31,Royal Mail,101554,21/02/2019,10268284,TC,,,,PN,1326.1,43504
Housing Revenue Account,Supervision and Management General,MAN00,Postage & Distribution,370,112.92,Royal Mail,101554,21/02/2019,10268284,TC,,,,PN,1326.1,43504
Growth and Investment,Planning General/Income,PLN00,Postage & Distribution,370,325.08,Royal Mail,101554,21/02/2019,10268284,TC,,,,PN,1326.1,43504
Environment and Public Realm,Domestic Waste Collection/Recycling,REF00,Postage & Distribution,370,4.86,Royal Mail,101554,21/02/2019,10268284,TC,,,,PN,1326.1,43504
Environment and Public Realm,Household Green Waste Collections,REF06,Postage & Distribution,370,0.43,Royal Mail,101554,21/02/2019,10268284,TC,,,,PN,1326.1,43504
Housing Revenue Account,Unplanned Maintenance and Repair,UMR00,Postage & Distribution,370,0.43,Royal Mail,101554,21/02/2019,10268284,TC,,,,PN,1326.1,43504
Corporate Resources,Corporate Property Central Utilities,CPA02,Electricity,130,1241.73,Water Plus,101610,07/02/2019,10267695,TC,,4141390,,PN,1241.73,43487
Corporate Resources,Corporate Property Central Utilities,CPA02,Water Services,143,588.6,Water Plus,101610,07/02/2019,10267860,TC,,4141390,,PN,588.6,43490
Housing Revenue Account,Tanser Court AP,AGP17,Water Services,143,1087.72,Water Plus,101610,28/02/2019,10268531,TC,,4141390,,PN,1087.72,43511
Housing Revenue Account,Stretton Court AP,AGP13,Water Services,143,808.04,Water Plus,101610,28/02/2019,10268532,TC,,4141390,,PN,808.04,43511
Housing Revenue Account,Albert Square AP,AGP20,Water Services,143,1864.37,Water Plus,101610,28/02/2019,10268533,TC,,4141390,,PN,1864.37,43511
Environment and Public Realm,Grounds Maintenance,PKS20,Materials,303,939.05,Spaldings (UK) Limited,101634,21/02/2019,10268241,TC,,,389 0124 42,PI,1126.86,43502
Executive Director Office,Electoral Registration,ERG00,Rents,140,502.42,St George's Church,101652,14/02/2019,10268351,TC,,,,PN,502.42,43507
Environment and Public Realm,Domestic Waste Collection/Recycling,REF00,Tyres,205,590,HI-Q Tyreservices,101736,14/02/2019,10268160,TC,,,100159429,PN,2421.06,43501
Environment and Public Realm,Household Green Waste Collections,REF06,Tyres,205,754.56,HI-Q Tyreservices,101736,14/02/2019,10268160,TC,,,100159429,PN,2421.06,43501
Environment and Public Realm,Trade Waste Collection,WWC01,Tyres,205,672.99,HI-Q Tyreservices,101736,14/02/2019,10268160,TC,,,100159429,PN,2421.06,43501
Environment and Public Realm,Domestic Waste Collection/Recycling,REF00,Tyres,205,344,HI-Q Tyreservices,101736,14/02/2019,10268411,TC,,,100159429,PN,1253.02,43508
Environment and Public Realm,Trade Waste Collection,WWC01,Tyres,205,700.18,HI-Q Tyreservices,101736,14/02/2019,10268411,TC,,,100159429,PN,1253.02,43508
Environment and Public Realm,Domestic Waste Collection/Recycling,REF00,Tyres,205,558,HI-Q Tyreservices,101736,28/02/2019,10268635,TC,,,100159429,PN,1021.2,43515
Environment and Public Realm,Trade Waste Collection,WWC01,Tyres,205,293,HI-Q Tyreservices,101736,28/02/2019,10268635,TC,,,100159429,PN,1021.2,43515
Environment and Public Realm,Domestic Waste Collection/Recycling,REF00,Vehicle Repair and Maintenance,200,514.81,Terberg Matec UK,101761,14/02/2019,10267933,TC,,,560 8785 10,PN,617.77,43494
Environment and Public Realm,Domestic Waste Collection/Recycling,REF00,Vehicle Repair and Maintenance,200,1174.87,Terberg Matec UK,101761,14/02/2019,10268281,TC,,,560 8785 10,PN,1409.84,43504
Environment and Public Realm,Parks,PKS00,Conference & Seminar Fees,401,500,Warwickshire Wildlife Trust,101860,28/02/2019,10268804,TC,,585247,670318740,PN,600,43518
Outside portfolio expenditure,Balance Sheet,BS,Revenue Section Agreements,9865,6519,University Hospitals Coventry & Warks NHS Trust,101898,14/02/2019,10268431,TC,,,654949096,PN,6519,43509
Capital Housing Revenue Account,Heating Upgrades,HIM01,Capital Contract Payments,5000,2587.86,Adroit Services Ltd,101939,07/02/2019,10268088,CS,,4729393,812650159,PN,3105.43,43497
Housing Revenue Account,Unplanned Maintenance and Repair,UMR00,External Contractor & Operator,742,-1801.86,Adroit Services Ltd,101939,14/02/2019,10268334,CS,,4729393,812650159,PN,-2162.23,43507
Capital Housing Revenue Account,Disabled Adaptations,HCR01,Capital Contract Payments,5000,8316.47,Adroit Services Ltd,101939,14/02/2019,10268442,CS,,4729393,812650159,PN,9979.76,43509
Housing Revenue Account,Gas Heating Systems,UMR01,R&M External Contractors,100,1124,Adroit Services Ltd,101939,14/02/2019,10268443,CS,,4729393,812650159,PN,6274.43,43509
Capital Housing Revenue Account,Heating Upgrades,HIM01,Capital Contract Payments,5000,4104.69,Adroit Services Ltd,101939,14/02/2019,10268443,CS,,4729393,812650159,PN,6274.43,43509
Growth and Investment,AGM Exhibitions/Outreach,AGM02,Other Miscellaneous Expenses,444,779.25,Moseley Signs,107594,07/02/2019,10268043,TC,,,273211976,PI,935.1,43497
Capital Communities and Homes,Disabled Facilities Grant,REN01,Capital Grants,5014,126898,Nuneaton & Bedworth Borough Council,108060,07/02/2019,10267970,TC,,,115336790,PN,126898,43495
Corporate Resources,Corporate Property R&M,CPA01,R&M External Contractors,100,2145,Ser-Tec Systems Ltd,108074,21/02/2019,10268479,CS,,2027772,436865026,PN,2574,43511
Corporate Resources,Corporate Property R&M,CPA01,R&M External Contractors,100,750,Ser-Tec Systems Ltd,108074,21/02/2019,10268480,CS,,2027772,436865026,PN,900,43511
Corporate Resources,Corporate Property R&M,CPA01,R&M External Contractors,100,1500,Ser-Tec Systems Ltd,108074,21/02/2019,10268481,CS,,2027772,436865026,PN,1800,43511
Housing Revenue Account,Gas Heating Systems,UMR01,R&M External Contractors,100,709,Ser-Tec Systems Ltd,108074,21/02/2019,10268551,CS,,2027772,436865026,PN,850.8,43514
Housing Revenue Account,Gas Heating Systems,UMR01,R&M External Contractors,100,2673,Ser-Tec Systems Ltd,108074,21/02/2019,10268552,CS,,2027772,436865026,PN,3207.6,43514
Environment and Public Realm,Street Cleansing General,STC00,Training fees,11,495,Scarab Sweepers Ltd,108252,07/02/2019,10267997,TC,,1823459,374500268,PI,594,43495
Environment and Public Realm,Crematorium,CRM00,Medical Referees Fees,413,1831.5,Dunchurch Surgery,108687,14/02/2019,10268248,TC,,,,PN,1831.5,43503
Environment and Public Realm,Garage,WVR00,Materials,303,35047.4,Watson Petroleum,110361,14/02/2019,10268243,TC,,,195046059,PI,42056.88,43502
Corporate Resources,Corporate Property R&M,CPA01,R&M External Contractors,100,494.77,Croxford Electrical Ltd,110451,28/02/2019,10268731,CS,,7751876,307 4408 76,PN,593.72,43517
Corporate Resources,Corporate Property R&M,CPA01,R&M External Contractors,100,563.66,Croxford Electrical Ltd,110451,28/02/2019,10268732,CS,,7751876,307 4408 76,PN,676.4,43517
Environment and Public Realm,Crematorium,CRM00,Purchases for Resale,305,488.83,P D Timms,111508,07/02/2019,10268173,TC,,,420836274,PN,586.6,43501
Environment and Public Realm,Crematorium,CRM00,Purchases for Resale,305,418.33,P D Timms,111508,07/02/2019,10268174,TC,,,420836274,PN,502,43501
Environment and Public Realm,Crematorium,CRM00,Purchases for Resale,305,469.33,P D Timms,111508,07/02/2019,10268175,TC,,,420836274,PN,563.2,43501
Environment and Public Realm,Crematorium,CRM00,Purchases for Resale,305,443.08,P D Timms,111508,07/02/2019,10268176,TC,,,420836274,PN,531.7,43501
Environment and Public Realm,Crematorium,CRM00,Purchases for Resale,305,474.58,P D Timms,111508,07/02/2019,10268177,TC,,,420836274,PN,569.5,43501
Environment and Public Realm,Crematorium,CRM00,Purchases for Resale,305,466.33,P D Timms,111508,07/02/2019,10268178,TC,,,420836274,PN,559.6,43501
Environment and Public Realm,Crematorium,CRM00,Purchases for Resale,305,419.08,P D Timms,111508,07/02/2019,10268180,TC,,,420836274,PN,502.9,43501
Environment and Public Realm,Crematorium,CRM00,Purchases for Resale,305,447.58,P D Timms,111508,14/02/2019,10268251,TC,,,420836274,PN,537.1,43503
Growth and Investment,The Benn Hall,BHL00,Hospitality,331,1050,The Chefs Kitchen (UK) Limited,111682,28/02/2019,10268956,TC,,,765 5649 84,PN,1260,43523
Environment and Public Realm,Whitehall Recreation Ground,LEI23,Capital Contract Payments,5000,6867.63,Eibe Play Ltd,112440,21/02/2019,10268571,CS,,,561 2861 44,PI,8241.16,43514
Environment and Public Realm,New licensing system,CMP37,Software Purchase,373,1000,Civica UK Ltd,112724,07/02/2019,10267917,TC,,1909454,391171065,PI,1200,43494
Communities and Homes,Maintenance of Customer Services Systems,CIS21,Software Maintenance,374,2590,Civica UK Ltd,112724,07/02/2019,10268038,TC,,1909454,391171065,PI,3108,43497
Communities and Homes,ITC & Support Services,CIS10,Training fees,11,415,Civica UK Ltd,112724,14/02/2019,10268392,TC,,1909454,391171065,PI,813,43508
Corporate Resources,Council Tax and NNDR Collection,CTX01,Training fees,11,262.5,Civica UK Ltd,112724,14/02/2019,10268392,TC,,1909454,391171065,PI,813,43508
Corporate Resources,Council Tax and NNDR Collection,CTX01,Software Purchase,373,1906,Civica UK Ltd,112724,14/02/2019,10268393,TC,,1909454,391171065,PI,2287.2,43508
Communities and Homes,ITC & Support Services,CIS10,Software Maintenance,374,26238.24,Civica UK Ltd,112724,21/02/2019,10268592,TC,,1909454,391171065,PN,31485.89,43514
Communities and Homes,Maintenance of Customer Services Systems,CIS21,Software Maintenance,374,17605,Civica UK Ltd,112724,28/02/2019,10268709,TC,,1909454,391171065,PI,21126,43516
Environment and Public Realm,New licensing system,CMP37,Software Purchase,373,7000,Civica UK Ltd,112724,28/02/2019,10268719,TC,,1909454,391171065,PI,8400,43517
Environment and Public Realm,Crematorium,CRM00,Purchases for Resale,305,552.6,Teleshore (UK) Ltd,112868,21/02/2019,10268125,TC,,,655 7480 06,PN,663.12,43501
Communities and Homes,CL Grants,CGS00,Grants To Voluntary Organisations,720,7500,Newbold on Avon Rugby Football Club,115674,14/02/2019,10268374,TC,,,,PN,7500,43508
Corporate Resources,General Financial Services,GFS00,Other Insurance Premiums,440,10349.5,Zurich Insurance plc,116530,28/02/2019,10268770,TC,,,107831677,PN,12419.4,43518
Corporate Resources,General Financial Services,GFS00,Other Insurance Premiums,440,120480.04,Zurich Insurance plc,116530,28/02/2019,10268771,TC,,,107831677,PN,120480.04,43518
Corporate Resources,General Financial Services,GFS00,Other Insurance Premiums,440,3360,Zurich Insurance plc,116530,28/02/2019,10268772,TC,,,107831677,PN,3360,43518
Environment and Public Realm,Safety and Resilience,EPL00,Training fees,11,950,OSTAS,117097,28/02/2019,10268829,TC,,,398450607,PI,1140,43518
Communities and Homes,Community Advice & Support Team,CAS00,Other,763,1325,Airey Consultancy Services Ltd,117127,28/02/2019,10266931,TC,,3518844,709672706,PN,1590,43454
Executive Director Office,Mayoral Services,May-00,Vehicle Repair and Maintenance,200,610,Prestige Body Repairs (Rugby) Ltd.,118544,21/02/2019,10268568,TC,,,623865721,PI,732,43514
Housing Revenue Account,Miscellaneous Unplanned Maintenance and Repair,UMR17,R&M External Contractors,100,6350.5,Hi-Lite Electrical Ltd,118814,28/02/2019,10268756,TC,,,813178832,PN,7620.6,43518
Corporate Resources,Human Resources Centralised Services,RES31,Training fees,11,1346.68,Nelson Training,120218,28/02/2019,10268913,TC,,,781446904,PN,1616.02,43522
Communities and Homes,Maintenance of Customer Services Systems,CIS21,Software Maintenance,374,851.04,Northgate Public Services (UK)  Ltd,121606,28/02/2019,10268707,TC,,968498,207588545,PI,1021.25,43516
Environment and Public Realm,Garage,WVR00,Maintenance of Equipment,301,2216.82,Fueltek Ltd,123134,21/02/2019,10268576,TC,,,785 1264 13,PI,2660.18,43514
Communities and Homes,ITC & Support Services,CIS10,Hardware Maintenance,376,3403.12,Cable & Wireless/T/A Vodafone,123224,21/02/2019,10268597,TC,,,569953277,PN,4083.74,43515
Capital Environment and Public Realm,Purchase of Waste Bins,PWB00,Capital Contract Payments,5000,13681.2,SSI Schaefer Ltd,123543,14/02/2019,10268101,TC,,,,PI,16417.44,43497
Executive Director Office,"Communications, Consultation and Information Team",BTR20,Publicity & Marketing,377,440,Krishna Enterprises Ltd T/A Steers Printing,123590,07/02/2019,10268035,TC,,5176756,844218628,PI,528,43497
Communities and Homes,CAST - Private Sector Leasing,CAS03,Furniture,302,895.83,Rite Price Furniture Ltd,125153,14/02/2019,10268346,TC,,2911488,,PN,1075,43507
Communities and Homes,Ashwood Court Supported Flats,MSF01,Furniture,302,765,Rite Price Furniture Ltd,125153,28/02/2019,10268822,TC,,2911488,,PN,918,43518
Capital Housing Revenue Account,Purchase of Council Houses,PUR00,Capital Contract Payments,5000,575,George and Company (Surveyors) Ltd,126668,21/02/2019,10268569,TC,,,984706870,PI,690,43514
Housing Revenue Account,Unplanned Maintenance and Repair,UMR00,External Contractor & Operator,742,781.25,M P Hudson & Son,129334,28/02/2019,10268930,CS,,,770861806,PN,781.25,43522
Environment and Public Realm,Section 106 Grounds Maintenance,PKS16,External Contractor & Operator,742,482.69,Sutcliffe Play Ltd,131511,14/02/2019,10268238,TC,,4780910,817894678,PI,579.23,43502
Environment and Public Realm,Parks,PKS00,Maintenance of Equipment,301,369.64,Sutcliffe Play Ltd,131511,21/02/2019,10268452,TC,,4780910,817894678,PI,1225.29,43509
Environment and Public Realm,Section 106 Grounds Maintenance,PKS16,External Contractor & Operator,742,651.44,Sutcliffe Play Ltd,131511,21/02/2019,10268452,TC,,4780910,817894678,PI,1225.29,43509
Executive Director Office,Electoral Registration,ERG00,External Printing,352,498.4,Electoral Reform Services,131623,07/02/2019,10268021,TC,,2263092,236 8689 15,PN,598.08,43497
Environment and Public Realm,Car Parks General,CPK01,Cash Collection,744,991.88,Jade Security Services Ltd,131711,14/02/2019,10268292,TC,,,642505654,PN,1190.26,43504
Growth and Investment,Town Centre CCTV and Management,TVM00,Other Agencies,734,21889.8,Rugby First Ltd - BID,133176,07/02/2019,10268223,TC,,,874675571,PN,26267.76,43502
Communities and Homes,Woodside Park,TVR00,External Contractor & Operator,742,11000,Rugby First Ltd - BID,133176,28/02/2019,10268741,TC,,,874675571,PN,13200,43517
Corporate Resources,Human Resources Centralised Services,RES31,Training fees,11,1100,Westlake Ltd,136108,07/02/2019,10268046,TC,,5416753,846236712,PI,1320,43497
Corporate Resources,Human Resources Centralised Services,RES31,Training fees,11,550,Westlake Ltd,136108,28/02/2019,10268832,TC,,5416753,846236712,PI,660,43518
Environment and Public Realm,Street Cleansing General,STC00,Materials,303,470,Danline International Ltd,137588,14/02/2019,10268239,TC,,,,PI,564,43502
Communities and Homes,ITC & Support Services,CIS10,Photocopying,354,570,Plot It T/A Stanford Marsh,138178,28/02/2019,10268342,TC,,,765325322,PN,684,43507
Growth and Investment,AGM Conservation/Documentation,AGM01,Other Miscellaneous Expenses,444,990,Meaco Measurement and Control Ltd,138998,21/02/2019,10268553,TC,,,866 6015 09,PN,1188,43514
Communities and Homes,Universal Credit Support,CAS04,Other Agencies,734,5922,Bedworth Rugby & Nuneaton Citizens Advice Bureau,139552,14/02/2019,10267429,TC,,,,PI,7106.4,43479
Environment and Public Realm,Trade Waste Collection,WWC01,Vehicle Repair and Maintenance,200,737.23,Midlands Truck & Van Ltd,140322,14/02/2019,10268230,TC,,7492514,243 6111 93,PN,884.68,43502
Environment and Public Realm,Domestic Waste Collection/Recycling,REF00,Vehicle Repair and Maintenance,200,327.6,Midlands Truck & Van Ltd,140322,28/02/2019,10268649,TC,,7492514,243 6111 93,PN,589.68,43516
Environment and Public Realm,Trade Waste Collection,WWC01,Vehicle Repair and Maintenance,200,163.8,Midlands Truck & Van Ltd,140322,28/02/2019,10268649,TC,,7492514,243 6111 93,PN,589.68,43516
Environment and Public Realm,Trade Waste Collection,WWC01,Vehicle Repair and Maintenance,200,1503.99,Midlands Truck & Van Ltd,140322,28/02/2019,10268650,TC,,7492514,243 6111 93,PN,1804.79,43516
Environment and Public Realm,Trade Waste Collection,WWC01,Vehicle Repair and Maintenance,200,689.85,Midlands Truck & Van Ltd,140322,28/02/2019,10268651,TC,,7492514,243 6111 93,PN,827.82,43516
Housing Revenue Account,Multi-Storey Flats,MSF00,External Contractor & Operator,742,51024.96,StoneWall Security Ltd,140775,07/02/2019,10268158,TC,,6587546,937387578,PN,61229.95,43501
Environment and Public Realm,Car Parks General,CPK01,External Contractor & Operator,742,621,StoneWall Security Ltd,140775,07/02/2019,10268159,TC,,6587546,937387578,PN,745.2,43501
Housing Revenue Account,Multi-Storey Flats,MSF00,External Contractor & Operator,742,23354.52,StoneWall Security Ltd,140775,21/02/2019,10268519,TC,,6587546,937387578,PN,28025.43,43511
Housing Revenue Account,Solid fuel servicing,UMR12,R&M External Contractors,100,1120,Elite Sweep Service,141080,07/02/2019,10268118,TC,,,896 2613 85,PN,1344,43501
Corporate Resources,Corporate Property R&M,CPA01,R&M External Contractors,100,582,Quadrant Security Group Limited,141441,07/02/2019,10268034,TC,,5831231,417 0698 46,PN,698.4,43497
Environment and Public Realm,Crematorium,CRM00,Telephone Expenses,371,538,Zen Internet Ltd,141612,07/02/2019,10268121,TC,,3101568,686049501,PN,645.6,43501
Communities and Homes,Broadband & internet,TEL01,Telephone Expenses,371,970.25,Zen Internet Ltd,141612,28/02/2019,10268763,TC,,3101568,686049501,PN,1164.3,43518
Environment and Public Realm,Domestic Waste Collection/Recycling,REF00,External Contractor & Operator,742,42990.16,Pure Recycling (Warwick) Limited,141883,14/02/2019,10267975,TC,,6436462,922427047,PN,51588.19,43495
Environment and Public Realm,Grounds Maintenance,PKS20,Agency Staff,3,652.85,Comensura Limited,142471,07/02/2019,10267959,TC,,4085767,755 3211 45,PN,9407.25,43495
Environment and Public Realm,Domestic Waste Collection/Recycling,REF00,Agency Staff,3,5462.96,Comensura Limited,142471,07/02/2019,10267959,TC,,4085767,755 3211 45,PN,9407.25,43495
Environment and Public Realm,Street Cleansing General,STC00,Agency Staff,3,821.87,Comensura Limited,142471,07/02/2019,10267959,TC,,4085767,755 3211 45,PN,9407.25,43495
Housing Revenue Account,Unplanned Maintenance and Repair,UMR00,Agency Staff,3,901.8,Comensura Limited,142471,07/02/2019,10267959,TC,,4085767,755 3211 45,PN,9407.25,43495
Communities and Homes,Community Advice & Support Team,CAS00,Agency Staff,3,1079.66,Comensura Limited,142471,14/02/2019,10268213,TC,,4085767,755 3211 45,PN,9812.84,43502
Environment and Public Realm,Grounds Maintenance,PKS20,Agency Staff,3,538.19,Comensura Limited,142471,14/02/2019,10268213,TC,,4085767,755 3211 45,PN,9812.84,43502
Environment and Public Realm,Domestic Waste Collection/Recycling,REF00,Agency Staff,3,5281,Comensura Limited,142471,14/02/2019,10268213,TC,,4085767,755 3211 45,PN,9812.84,43502
Environment and Public Realm,Street Cleansing General,STC00,Agency Staff,3,649,Comensura Limited,142471,14/02/2019,10268213,TC,,4085767,755 3211 45,PN,9812.84,43502
Housing Revenue Account,Unplanned Maintenance and Repair,UMR00,Agency Staff,3,629.61,Comensura Limited,142471,14/02/2019,10268213,TC,,4085767,755 3211 45,PN,9812.84,43502
Environment and Public Realm,Grounds Maintenance,PKS20,Agency Staff,3,568.36,Comensura Limited,142471,14/02/2019,10268427,TC,,4085767,755 3211 45,PN,9662.01,43509
Environment and Public Realm,Domestic Waste Collection/Recycling,REF00,Agency Staff,3,5990.72,Comensura Limited,142471,14/02/2019,10268427,TC,,4085767,755 3211 45,PN,9662.01,43509
Environment and Public Realm,Street Cleansing General,STC00,Agency Staff,3,566.21,Comensura Limited,142471,14/02/2019,10268427,TC,,4085767,755 3211 45,PN,9662.01,43509
Housing Revenue Account,Unplanned Maintenance and Repair,UMR00,Agency Staff,3,926.51,Comensura Limited,142471,14/02/2019,10268427,TC,,4085767,755 3211 45,PN,9662.01,43509
Communities and Homes,Community Advice & Support Team,CAS00,Agency Staff,3,2944.5,Comensura Limited,142471,21/02/2019,10268677,TC,,4085767,755 3211 45,PN,11780.86,43516
Environment and Public Realm,Grounds Maintenance,PKS20,Agency Staff,3,236.25,Comensura Limited,142471,21/02/2019,10268677,TC,,4085767,755 3211 45,PN,11780.86,43516
Environment and Public Realm,Domestic Waste Collection/Recycling,REF00,Agency Staff,3,5159.84,Comensura Limited,142471,21/02/2019,10268677,TC,,4085767,755 3211 45,PN,11780.86,43516
Environment and Public Realm,Street Cleansing General,STC00,Agency Staff,3,573.15,Comensura Limited,142471,21/02/2019,10268677,TC,,4085767,755 3211 45,PN,11780.86,43516
Housing Revenue Account,Unplanned Maintenance and Repair,UMR00,Agency Staff,3,903.76,Comensura Limited,142471,21/02/2019,10268677,TC,,4085767,755 3211 45,PN,11780.86,43516
Communities and Homes,Community Advice & Support Team,CAS00,Agency Staff,3,1177.8,Comensura Limited,142471,28/02/2019,10268951,TC,,4085767,755 3211 45,PN,12119.27,43523
Environment and Public Realm,Grounds Maintenance,PKS20,Agency Staff,3,315,Comensura Limited,142471,28/02/2019,10268951,TC,,4085767,755 3211 45,PN,12119.27,43523
Environment and Public Realm,Domestic Waste Collection/Recycling,REF00,Agency Staff,3,7470.53,Comensura Limited,142471,28/02/2019,10268951,TC,,4085767,755 3211 45,PN,12119.27,43523
Environment and Public Realm,Street Cleansing General,STC00,Agency Staff,3,384.53,Comensura Limited,142471,28/02/2019,10268951,TC,,4085767,755 3211 45,PN,12119.27,43523
Housing Revenue Account,Unplanned Maintenance and Repair,UMR00,Agency Staff,3,751.73,Comensura Limited,142471,28/02/2019,10268951,TC,,4085767,755 3211 45,PN,12119.27,43523
Communities and Homes,Community Advice & Support Team,CAS00,Ref. Books Journals & Magazines,353,425,Hbinfo Ltd,144002,07/02/2019,10268049,TC,,,880720227,PN,510,43497
Communities and Homes,CL Grants,CGS00,Grants To Voluntary Organisations,720,8250,Warwickshire Community and Voluntary Action,145040,28/02/2019,10268823,TC,,,,PN,9900,43518
Communities and Homes,Community Advice & Support Team,CAS00,Agency Staff,3,954.49,James Andrews Recruitment Solutions Ltd,145100,07/02/2019,10267992,TC,,6834852,976026696,PI,1145.38,43495
Communities and Homes,Community Advice & Support Team,CAS00,Agency Staff,3,1424.38,James Andrews Recruitment Solutions Ltd,145100,14/02/2019,10268198,TC,,6834852,976026696,PN,1709.26,43502
Communities and Homes,Community Advice & Support Team,CAS00,Agency Staff,3,917.4,James Andrews Recruitment Solutions Ltd,145100,14/02/2019,10268386,TC,,6834852,976026696,PI,1100.88,43508
Communities and Homes,Community Advice & Support Team,CAS00,Agency Staff,3,1415.31,James Andrews Recruitment Solutions Ltd,145100,14/02/2019,10268421,TC,,6834852,976026696,PN,1698.37,43509
Communities and Homes,Community Advice & Support Team,CAS00,Agency Staff,3,978.56,James Andrews Recruitment Solutions Ltd,145100,21/02/2019,10268562,TC,,6834852,976026696,PI,1174.27,43514
Communities and Homes,Community Advice & Support Team,CAS00,Agency Staff,3,1143.14,James Andrews Recruitment Solutions Ltd,145100,21/02/2019,10268670,TC,,6834852,976026696,PN,1371.77,43516
Communities and Homes,Community Advice & Support Team,CAS00,Agency Staff,3,933.85,James Andrews Recruitment Solutions Ltd,145100,28/02/2019,10268836,TC,,6834852,976026696,PI,1120.62,43518
Communities and Homes,Community Advice & Support Team,CAS00,Agency Staff,3,1379.02,James Andrews Recruitment Solutions Ltd,145100,28/02/2019,10268947,TC,,6834852,976026696,PN,1654.82,43523
Communities and Homes,CL Grants,CGS00,Grants To Voluntary Organisations,720,3916.21,Rugby Credit Union,145332,14/02/2019,10268305,NT,,,,PN,3916.21,43504
Corporate Resources,Corporate Property R&M,CPA01,R&M External Contractors,100,848.5,Stanair Industrial Services Ltd,146499,07/02/2019,10267896,CS,,,,PN,1018.2,43493
Housing Revenue Account,Sheltered Housing,AGP00,Electricity,130,262.74,Total Gas & Power Ltd,146631,28/02/2019,10268417,TC,,2172239,689638949,PN,16157.77,43508
Housing Revenue Account,Alfred Green Close AP,AGP01,Electricity,130,325.32,Total Gas & Power Ltd,146631,28/02/2019,10268417,TC,,2172239,689638949,PN,16157.77,43508
Housing Revenue Account,Avon Court AP,AGP02,Electricity,130,288.71,Total Gas & Power Ltd,146631,28/02/2019,10268417,TC,,2172239,689638949,PN,16157.77,43508
Housing Revenue Account,Dickinson Court AP,AGP03,Electricity,130,278.8,Total Gas & Power Ltd,146631,28/02/2019,10268417,TC,,2172239,689638949,PN,16157.77,43508
Housing Revenue Account,Duffy Place AP,AGP04,Electricity,130,251.29,Total Gas & Power Ltd,146631,28/02/2019,10268417,TC,,2172239,689638949,PN,16157.77,43508
Housing Revenue Account,Frederick Press Way AP,AGP06,Electricity,130,675.04,Total Gas & Power Ltd,146631,28/02/2019,10268417,TC,,2172239,689638949,PN,16157.77,43508
Housing Revenue Account,John Thwaites Close AP,AGP08,Electricity,130,124.69,Total Gas & Power Ltd,146631,28/02/2019,10268417,TC,,2172239,689638949,PN,16157.77,43508
Housing Revenue Account,Mercer Court AP,AGP09,Electricity,130,301.77,Total Gas & Power Ltd,146631,28/02/2019,10268417,TC,,2172239,689638949,PN,16157.77,43508
Housing Revenue Account,Pettiver Crescent I AP,AGP10,Electricity,130,344.34,Total Gas & Power Ltd,146631,28/02/2019,10268417,TC,,2172239,689638949,PN,16157.77,43508
Housing Revenue Account,Robotham Close AP,AGP11,Electricity,130,358.73,Total Gas & Power Ltd,146631,28/02/2019,10268417,TC,,2172239,689638949,PN,16157.77,43508
Housing Revenue Account,Stacey Court AP,AGP12,Electricity,130,98.89,Total Gas & Power Ltd,146631,28/02/2019,10268417,TC,,2172239,689638949,PN,16157.77,43508
Housing Revenue Account,Stretton Court AP,AGP13,Electricity,130,137.38,Total Gas & Power Ltd,146631,28/02/2019,10268417,TC,,2172239,689638949,PN,16157.77,43508
Housing Revenue Account,Sun Street/Windsor Street AP,AGP14,Electricity,130,397.16,Total Gas & Power Ltd,146631,28/02/2019,10268417,TC,,2172239,689638949,PN,16157.77,43508
Housing Revenue Account,Lesley Souter House AP,AGP16,Electricity,130,769.37,Total Gas & Power Ltd,146631,28/02/2019,10268417,TC,,2172239,689638949,PN,16157.77,43508
Housing Revenue Account,Tanser Court AP,AGP17,Electricity,130,605.25,Total Gas & Power Ltd,146631,28/02/2019,10268417,TC,,2172239,689638949,PN,16157.77,43508
Housing Revenue Account,Edward Court AP,AGP19,Electricity,130,344.82,Total Gas & Power Ltd,146631,28/02/2019,10268417,TC,,2172239,689638949,PN,16157.77,43508
Housing Revenue Account,Albert Square AP,AGP20,Electricity,130,1132.5,Total Gas & Power Ltd,146631,28/02/2019,10268417,TC,,2172239,689638949,PN,16157.77,43508
Housing Revenue Account,Eliot Court AP,AGP25,Electricity,130,78.24,Total Gas & Power Ltd,146631,28/02/2019,10268417,TC,,2172239,689638949,PN,16157.77,43508
Housing Revenue Account,Clare Court Site,AGP27,Electricity,130,43.03,Total Gas & Power Ltd,146631,28/02/2019,10268417,TC,,2172239,689638949,PN,16157.77,43508
Housing Revenue Account,Alexandra/James Court AP,AGP30,Electricity,130,226.61,Total Gas & Power Ltd,146631,28/02/2019,10268417,TC,,2172239,689638949,PN,16157.77,43508
Housing Revenue Account,Hirst Close AP,AGP33,Electricity,130,106.69,Total Gas & Power Ltd,146631,28/02/2019,10268417,TC,,2172239,689638949,PN,16157.77,43508
Housing Revenue Account,Assheton Close AP,AGP36,Electricity,130,74.16,Total Gas & Power Ltd,146631,28/02/2019,10268417,TC,,2172239,689638949,PN,16157.77,43508
Housing Revenue Account,Bennett Court/Warwick Road AP,AGP38,Electricity,130,54.77,Total Gas & Power Ltd,146631,28/02/2019,10268417,TC,,2172239,689638949,PN,16157.77,43508
Housing Revenue Account,Brookside Pailton AP,AGP40,Electricity,130,79.49,Total Gas & Power Ltd,146631,28/02/2019,10268417,TC,,2172239,689638949,PN,16157.77,43508
Housing Revenue Account,Clifton Road AP,AGP41,Electricity,130,24.58,Total Gas & Power Ltd,146631,28/02/2019,10268417,TC,,2172239,689638949,PN,16157.77,43508
Housing Revenue Account,Deepmore Road/Lytham Road AP,AGP42,Electricity,130,214.39,Total Gas & Power Ltd,146631,28/02/2019,10268417,TC,,2172239,689638949,PN,16157.77,43508
Housing Revenue Account,Edmondson Close Dunchurch AP,AGP44,Electricity,130,193.29,Total Gas & Power Ltd,146631,28/02/2019,10268417,TC,,2172239,689638949,PN,16157.77,43508
Housing Revenue Account,Featherbed Lane I AP,AGP45,Electricity,130,226.37,Total Gas & Power Ltd,146631,28/02/2019,10268417,TC,,2172239,689638949,PN,16157.77,43508
Housing Revenue Account,Fox Close AP,AGP47,Electricity,130,51.26,Total Gas & Power Ltd,146631,28/02/2019,10268417,TC,,2172239,689638949,PN,16157.77,43508
Housing Revenue Account,Great Balance Brinklow AP,AGP48,Electricity,130,38.23,Total Gas & Power Ltd,146631,28/02/2019,10268417,TC,,2172239,689638949,PN,16157.77,43508
Housing Revenue Account,Harold Cox Place AP,AGP51,Electricity,130,89.88,Total Gas & Power Ltd,146631,28/02/2019,10268417,TC,,2172239,689638949,PN,16157.77,43508
Housing Revenue Account,Jackson Road I AP,AGP53,Electricity,130,38.1,Total Gas & Power Ltd,146631,28/02/2019,10268417,TC,,2172239,689638949,PN,16157.77,43508
Housing Revenue Account,Lever Road I AP,AGP57,Electricity,130,174.51,Total Gas & Power Ltd,146631,28/02/2019,10268417,TC,,2172239,689638949,PN,16157.77,43508
Housing Revenue Account,Meadow Way/Primrose Court AP,AGP58,Electricity,130,133.42,Total Gas & Power Ltd,146631,28/02/2019,10268417,TC,,2172239,689638949,PN,16157.77,43508
Housing Revenue Account,Norman Road AP,AGP60,Electricity,130,13.08,Total Gas & Power Ltd,146631,28/02/2019,10268417,TC,,2172239,689638949,PN,16157.77,43508
Housing Revenue Account,Patterdale AP,AGP61,Electricity,130,33.55,Total Gas & Power Ltd,146631,28/02/2019,10268417,TC,,2172239,689638949,PN,16157.77,43508
Housing Revenue Account,The Kent AP,AGP67,Electricity,130,72.7,Total Gas & Power Ltd,146631,28/02/2019,10268417,TC,,2172239,689638949,PN,16157.77,43508
Housing Revenue Account,Victoria Street/Lawford Road AP,AGP68,Electricity,130,17.09,Total Gas & Power Ltd,146631,28/02/2019,10268417,TC,,2172239,689638949,PN,16157.77,43508
Housing Revenue Account,Parkfield Road/Lea Crescent AP,AGP71,Electricity,130,216.61,Total Gas & Power Ltd,146631,28/02/2019,10268417,TC,,2172239,689638949,PN,16157.77,43508
Housing Revenue Account,Pennington Street/Round Street AP,AGP72,Electricity,130,141.57,Total Gas & Power Ltd,146631,28/02/2019,10268417,TC,,2172239,689638949,PN,16157.77,43508
Housing Revenue Account,Control Centre CCTV,CCE01,Electricity,130,847.86,Total Gas & Power Ltd,146631,28/02/2019,10268417,TC,,2172239,689638949,PN,16157.77,43508
Corporate Resources,Corporate Property R&M,CPA01,Electricity,130,301.47,Total Gas & Power Ltd,146631,28/02/2019,10268417,TC,,2172239,689638949,PN,16157.77,43508
Housing Revenue Account,Supervision and Management General,MAN00,Electricity,130,204.69,Total Gas & Power Ltd,146631,28/02/2019,10268417,TC,,2172239,689638949,PN,16157.77,43508
Housing Revenue Account,Multi-Storey Flats,MSF00,Electricity,130,3964.23,Total Gas & Power Ltd,146631,28/02/2019,10268417,TC,,2172239,689638949,PN,16157.77,43508
Communities and Homes,Woodside Park,TVR00,Electricity,130,585.12,Total Gas & Power Ltd,146631,28/02/2019,10268417,TC,,2172239,689638949,PN,16157.77,43508
Corporate Resources,Corporate Property Central Utilities,CPA02,Electricity,130,2947.57,Total Gas & Power Ltd,146631,28/02/2019,10268418,TC,,2172239,689638949,PN,3608.42,43508
Corporate Resources,Corporate Property Central Utilities,CPA02,Electricity,130,15056.22,Total Gas & Power Ltd,146631,28/02/2019,10268419,TC,,2172239,689638949,PN,20356.82,43508
Environment and Public Realm,Crematorium,CRM00,Electricity,130,1768.5,Total Gas & Power Ltd,146631,28/02/2019,10268419,TC,,2172239,689638949,PN,20356.82,43508
Housing Revenue Account,Unplanned Maintenance and Repair,UMR00,Electricity,130,157.78,Total Gas & Power Ltd,146631,28/02/2019,10268419,TC,,2172239,689638949,PN,20356.82,43508
Communities and Homes,Fire Alarms at Rounds Gardens,FAR00,Capital Contract Payments,5000,13380,Environmental Essentials Ltd,146842,07/02/2019,10268089,TC,,5097507,844887474,PN,16056,43497
Communities and Homes,Fire Alarms at Rounds Gardens,FAR00,Capital Contract Payments,5000,9960,Environmental Essentials Ltd,146842,14/02/2019,10268350,TC,,5097507,844887474,PN,11952,43507
Communities and Homes,Fire Alarms at Rounds Gardens,FAR00,Capital Contract Payments,5000,10800,Environmental Essentials Ltd,146842,14/02/2019,10268444,TC,,5097507,844887474,PN,12960,43509
Communities and Homes,Fire Alarms at Rounds Gardens,FAR00,Capital Contract Payments,5000,10380,Environmental Essentials Ltd,146842,28/02/2019,10268828,TC,,5097507,844887474,PN,12456,43518
Corporate Resources,Retired Employees,RET00,Employers' Superannuation Contribution,2,25916.67,WCC Pension Fund,146914,07/02/2019,10268092,NT,,,,PN,25916.67,43497
Corporate Resources,Human Resources Centralised Services,RES31,Training fees,11,4750,Learning Nexus Ltd,146957,07/02/2019,10268227,TC,,2271707,466441339,PN,5700,43502
Environment and Public Realm,Domestic Waste Collection/Recycling,REF00,External Contractor & Operator,742,680,James Baxter Haulage Ltd,147159,14/02/2019,10268026,TC,,,620070986,PN,816,43497
Environment and Public Realm,Domestic Waste Collection/Recycling,REF00,External Contractor & Operator,742,850,James Baxter Haulage Ltd,147159,14/02/2019,10268289,TC,,,620070986,PN,1020,43504
Environment and Public Realm,Domestic Waste Collection/Recycling,REF00,External Contractor & Operator,742,510,James Baxter Haulage Ltd,147159,14/02/2019,10268294,TC,,,620070986,PN,612,43504
Environment and Public Realm,Domestic Waste Collection/Recycling,REF00,External Contractor & Operator,742,510,James Baxter Haulage Ltd,147159,14/02/2019,10268295,TC,,,620070986,PN,612,43504
Environment and Public Realm,Domestic Waste Collection/Recycling,REF00,External Contractor & Operator,742,1530,James Baxter Haulage Ltd,147159,28/02/2019,10268555,TC,,,620070986,PN,1836,43514
Corporate Resources,Corporate Property R&M,CPA01,R&M External Contractors,100,619,Condair plc,147263,28/02/2019,10268838,CS,,1652665,358496894,PN,742.8,43521
Environment and Public Realm,Domestic Waste Collection/Recycling,REF00,Contract Hire,220,1270,Trash UK Limited,147379,28/02/2019,10268715,TC,,3862427,738802807,PI,1524,43516
Environment and Public Realm,Domestic Waste Collection/Recycling,REF00,Contract Hire,220,910,Trash UK Limited,147379,28/02/2019,10268716,TC,,3862427,738802807,PI,1092,43516
Housing Revenue Account,Unplanned Maintenance and Repair,UMR00,Consultancy Costs,740,540,Howard Ward Associates Ltd,147433,14/02/2019,10268261,TC,,0C307294,119099062,PN,648,43503
Environment and Public Realm,Grounds Maintenance,PKS20,Vehicle Repair and Maintenance,200,544.91,Tallis Amos Group Limited,147758,14/02/2019,10268072,TC,,,377274127,PN,653.89,43497
Environment and Public Realm,Parks,PKS00,External Contractor & Operator,742,540.2,PPL PRS,147770,14/02/2019,10268322,TC,,,,PI,648.24,43507
Corporate Resources,General Financial Services,GFS00,Debt Management Expenses,751,1054.79,Tradition (UK) Ltd,147842,07/02/2019,10268028,TC,,937647,365463927,PN,1054.79,43497
Communities and Homes,CAST - Private Sector Leasing,CAS03,Private Sector Leasing Scheme Properties,148,1605,Personal Redacted Data,147940,28/02/2019,10268862,TC,,,,PN,1605,43521
Growth and Investment,The Benn Hall,BHL00,Recruitment Expenses,12,22,Team Prevent UK Ltd,148151,28/02/2019,10268662,TC,,,883064608,PN,1221,43516
Communities and Homes,Customer Support Services,CSS00,Recruitment Expenses,12,44,Team Prevent UK Ltd,148151,28/02/2019,10268662,TC,,,883064608,PN,1221,43516
Communities and Homes,Management Support Services,CSS20,Recruitment Expenses,12,44,Team Prevent UK Ltd,148151,28/02/2019,10268662,TC,,,883064608,PN,1221,43516
Growth and Investment,Play Projects (revenue),LSD09,Recruitment Expenses,12,22,Team Prevent UK Ltd,148151,28/02/2019,10268662,TC,,,883064608,PN,1221,43516
Growth and Investment,Planning General/Income,PLN00,Recruitment Expenses,12,22,Team Prevent UK Ltd,148151,28/02/2019,10268662,TC,,,883064608,PN,1221,43516
Corporate Resources,Financial Services,RES10,Recruitment Expenses,12,44,Team Prevent UK Ltd,148151,28/02/2019,10268662,TC,,,883064608,PN,1221,43516
Housing Revenue Account,Unplanned Maintenance and Repair,UMR00,Recruitment Expenses,12,22,Team Prevent UK Ltd,148151,28/02/2019,10268662,TC,,,883064608,PN,1221,43516
Housing Revenue Account,Sheltered Housing,AGP00,Employee wellbeing/Other employee expenses,21,91,Team Prevent UK Ltd,148151,28/02/2019,10268662,TC,,,883064608,PN,1221,43516
Environment and Public Realm,Crematorium,CRM00,Employee wellbeing/Other employee expenses,21,91,Team Prevent UK Ltd,148151,28/02/2019,10268662,TC,,,883064608,PN,1221,43516
Corporate Resources,Council Tax and NNDR Collection,CTX01,Employee wellbeing/Other employee expenses,21,91,Team Prevent UK Ltd,148151,28/02/2019,10268662,TC,,,883064608,PN,1221,43516
Environment and Public Realm,Safety and Resilience,EPL00,Employee wellbeing/Other employee expenses,21,91,Team Prevent UK Ltd,148151,28/02/2019,10268662,TC,,,883064608,PN,1221,43516
Communities and Homes,HEART - Home Environment Assessment Response Team,HRT00,Employee wellbeing/Other employee expenses,21,91,Team Prevent UK Ltd,148151,28/02/2019,10268662,TC,,,883064608,PN,1221,43516
Growth and Investment,Planning General/Income,PLN00,Employee wellbeing/Other employee expenses,21,91,Team Prevent UK Ltd,148151,28/02/2019,10268662,TC,,,883064608,PN,1221,43516
Environment and Public Realm,Domestic Waste Collection/Recycling,REF00,Employee wellbeing/Other employee expenses,21,91,Team Prevent UK Ltd,148151,28/02/2019,10268662,TC,,,883064608,PN,1221,43516
Environment and Public Realm,Street Cleansing General,STC00,Employee wellbeing/Other employee expenses,21,182,Team Prevent UK Ltd,148151,28/02/2019,10268662,TC,,,883064608,PN,1221,43516
Growth and Investment,Visitor Centre,VSC00,Employee wellbeing/Other employee expenses,21,91,Team Prevent UK Ltd,148151,28/02/2019,10268662,TC,,,883064608,PN,1221,43516
Environment and Public Realm,Trade Waste Collection,WWC01,Employee wellbeing/Other employee expenses,21,91,Team Prevent UK Ltd,148151,28/02/2019,10268662,TC,,,883064608,PN,1221,43516
Environment and Public Realm,Grounds Maintenance,PKS20,Personal Protective Equipment,306,1620,Reactec Ltd,148291,14/02/2019,10268343,TC,,221428,804120877,PN,1944,43507
Housing Revenue Account,Gas Heating Systems,UMR01,R&M External Contractors,100,1506.33,Robert Heath Heating Ltd,148858,07/02/2019,10268139,CS,,1773699,927 4909 89,PN,10669.75,43501
Housing Revenue Account,Repairs and Maintenance - Void works,UMR09,R&M External Contractors,100,1241.37,Robert Heath Heating Ltd,148858,07/02/2019,10268139,CS,,1773699,927 4909 89,PN,10669.75,43501
Housing Revenue Account,Smoke alarm replacements,UMR18,R&M External Contractors,100,6143.76,Robert Heath Heating Ltd,148858,07/02/2019,10268139,CS,,1773699,927 4909 89,PN,10669.75,43501
Housing Revenue Account,Gas Heating Systems,UMR01,R&M External Contractors,100,29624.28,Robert Heath Heating Ltd,148858,07/02/2019,10268140,CS,,1773699,927 4909 89,PN,35549.14,43501
Communities and Homes,CAST - Private Sector Leasing,CAS03,Building cleaning,170,1660.77,Solutions Services,148937,07/02/2019,10268025,TC,,,831753431,PN,1992.91,43497
Housing Revenue Account,Repairs and Maintenance - Void works,UMR09,R&M External Contractors,100,270,Elite Surveyors Ltd,149107,07/02/2019,10268090,TC,,6435692,924012466,PN,672,43497
Housing Revenue Account,Supervision and Management General,MAN00,External Contractor & Operator,742,45,Elite Surveyors Ltd,149107,07/02/2019,10268090,TC,,6435692,924012466,PN,672,43497
Housing Revenue Account,Voids & Allocations Team,MAN24,External Contractor & Operator,742,200,Elite Surveyors Ltd,149107,07/02/2019,10268090,TC,,6435692,924012466,PN,672,43497
Capital Housing Revenue Account,Purchase of Council Houses,PUR00,Capital Contract Payments,5000,45,Elite Surveyors Ltd,149107,07/02/2019,10268090,TC,,6435692,924012466,PN,672,43497
Environment and Public Realm,Garage,WVR00,Materials,303,738.67,Tom Tom International BV,149311,28/02/2019,10268523,TC,,FC031857,273433560,PN,886.4,43511
Environment and Public Realm,Private Hire Vehicles,HKC01,External Contractor & Operator,742,954.05,VIP-SYSTEM Ltd,149351,28/02/2019,10268389,TC,,SC132864,383040374,PI,1144.86,43508
Housing Revenue Account,Control Centre CCTV,CCE01,Maintenance of Equipment,301,5333.32,Close Circuit Security Services Ltd,149426,07/02/2019,10268086,TC,,3543850,695360895,PN,6399.98,43497
